Workbook

Sheet Read me first
A1: Read me first
A2: 1. Equity returns assumed are historical sensex returns computed for each financial year
A3: 2. Debt returns are historcial FD returns from RBI website
A4: 3. The last few debt returns (in red) have been added by hand as I could not get hold of actual data
A5: 4. Rebalancing a porfolio may involve transaction costs especially in SIP mode if the holding period of equity is less than an year
A6: 5. Debt instruments are taxable* so the final corpus will be lower in both cases and this tax may impact the benefit of rebalancing
A7: 6. The rebalancing shown here is done during the growth phase of the portfolio when the goal if far away
A8: 7. Close to goal (2-3 year) the equity component will be gradually or abruptly decreased and pushed to debt
A9: 8. The above step does not constitute rebalancing is the sense that it is usually used
A10: 9. The tool is only an indicator you would need to make a suitable choice depending on your personal situation.
A11: * If the direct tax code comes to effect long term equity investments will also become taxable

Sheet Rebalancing Illustration
A1: This is an illustration of portfolio rebalancing as found at
A2: http://www.jagoinvestor.com/2008/07/portfolio-rebalancing-today-i-am-going.html
A3: An investment of 1 lakhs is considered. Of this 30% is invested in equity and 70% in debt instruments | L3: Asset Allocation
A4: No Rebalancing. No futher changes are then made. The money is allowed to grow. | L4: Before investment | N4: After Investment.
A5: Year | B5: Sensex | C5: investment | D5: Total Equity | F5: FD | G5: investment | H5: Total FD | I5: Total Corpus | J5: Equity | K5: Debt | L5: Equity | M5: Debt | N5: Equity | O5: Debt
B6: return | F6: return
A7: 1 | B7: 0.3 | C7: 30000 | D7: =IF(A7=0,0,(C7+D6)*(1+B7)) -> 39000 | F7: 0.09 | G7: 70000 | H7: =IF(A7=0,0,(G7+H6)*(1+F7)) -> 76300 | I7: =D7+H7 -> 115300 | J7: =IF(A7=0,0,D7/(D7+H7)) -> 0.3382480486 | K7: =IF(A7=0,0,H7/(D7+H7)) -> 0.6617519514 | L7: =C7/(C7+G7) -> 0.3 | M7: =G7/(C7+G7) -> 0.7 | N7: =D7/I7 -> 0.3382480486 | O7: =H7/I7 -> 0.6617519514
A8: 2 | B8: -0.35 | C8: =IF(A8=0,0,(D7)) -> 39000 | D8: =IF(A8=0,0,(C8)*(1+B8)) -> 25350 | F8: 0.09 | G8: =IF(A8=0,0,(H7) ) -> 76300 | H8: =IF(A8=0,0,(G8)*(1+F8)) -> 83167 | I8: =D8+H8 -> 108517 | J8: =IF(A8=0,0,D8/(D8+H8)) -> 0.2336039515 | K8: =IF(A8=0,0,H8/(D8+H8)) -> 0.7663960485 | L8: =C8/(C8+G8) -> 0.3382480486 | M8: =G8/(C8+G8) -> 0.6617519514 | N8: =D8/I8 -> 0.2336039515 | O8: =H8/I8 -> 0.7663960485
A9: 3 | B9: 0.4 | C9: =IF(A9=0,0,(D8)) -> 25350 | D9: =IF(A9=0,0,(C9)*(1+B9)) -> 35490 | F9: 0.09 | G9: =IF(A9=0,0,(H8) ) -> 83167 | H9: =IF(A9=0,0,(G9)*(1+F9)) -> 90652.03 | I9: =D9+H9 -> 126142.03 | J9: =IF(A9=0,0,D9/(D9+H9)) -> 0.2813495232 | K9: =IF(A9=0,0,H9/(D9+H9)) -> 0.7186504768 | L9: 0.2336039515 | M9: 0.7663960485 | N9: 0.2813495232 | O9: 0.7186504768
A10: 4 | B10: 0.6 | C10: 35490 | D10: 56784 | F10: 0.09 | G10: =IF(A10=0,0,(H9) ) -> 90652.03 | H10: =IF(A10=0,0,(G10)*(1+F10)) -> 98810.7127 | I10: =D10+H10 -> 155594.7127 | J10: =IF(A10=0,0,D10/(D10+H10)) -> 0.3649481336 | K10: =IF(A10=0,0,H10/(D10+H10)) -> 0.6350518664 | L10: 0.2813495232 | M10: 0.7186504768 | N10: 0.3649481336 | O10: 0.6350518664
A11: 5 | B11: -0.3 | C11: 56784 | D11: 39748.8 | F11: 0.09 | G11: =IF(A11=0,0,(H10) ) -> 98810.7127 | H11: =IF(A11=0,0,(G11)*(1+F11)) -> 107703.6768 | I11: =D11+H11 -> 147452.4768 | J11: =IF(A11=0,0,D11/(D11+H11)) -> 0.2695702429 | K11: =IF(A11=0,0,H11/(D11+H11)) -> 0.7304297571 | L11: 0.3649481336 | M11: 0.6350518664 | N11: 0.2695702429 | O11: 0.7304297571
L12: Asset Allocation
A13: Rebalancing with 30% equity and 70% debt | L13: Before investment | N13: After Investment.
A14: Each year 30% of total corpus earned is invested in equity and 70% in debt irrespective of returns earned the previous year | L14: Equity | M14: Debt | N14: Equity | O14: Debt
A15: Year | B15: Sensex | C15: Investment | D15: Total Equity | F15: FD | G15: Investment | H15: Total | I15: Total Corpus | J15: Equity | K15: Debt
B16: return | F16: return
A17: 1 | B17: 0.3 | C17: 30000 | D17: =IF(A17=0,0,(C17)*(1+B17)) -> 39000 | F17: 0.09 | G17: 70000 | H17: =IF(A17=0,0,(G17)*(1+F17)) -> 76300 | I17: =D17+H17 -> 115300 | J17: =IF(A17=0,0,D17/(D17+H17)) -> 0.3382480486 | K17: =IF(A17=0,0,H17/(D17+H17)) -> 0.6617519514 | L17: =C17/(C17+G17) -> 0.3 | M17: =G17/(C17+G17) -> 0.7 | N17: =D17/I17 -> 0.3382480486 | O17: =H17/I17 -> 0.6617519514
A18: 2 | B18: -0.35 | C18: =IF(A18=0,0,(30%*(D17+H17))) -> 34590 | D18: =IF(A18=0,0,(C18)*(1+B18)) -> 22483.5 | F18: 0.09 | G18: =IF(A18=0,0,(70%*(H17+D17))) -> 80710 | H18: =IF(A18=0,0,(G18)*(1+F18)) -> 87973.9 | I18: =D18+H18 -> 110457.4 | J18: =IF(A18=0,0,D18/(D18+H18)) -> 0.2035490605 | K18: =IF(A18=0,0,H18/(D18+H18)) -> 0.7964509395 | L18: =C18/(C18+G18) -> 0.3 | M18: =G18/(C18+G18) -> 0.7 | N18: =D18/I18 -> 0.2035490605 | O18: =H18/I18 -> 0.7964509395
A19: 3 | B19: 0.4 | C19: =IF(A19=0,0,(30%*(D18+H18))) -> 33137.22 | D19: =IF(A19=0,0,(C19)*(1+B19)) -> 46392.108 | F19: 0.09 | G19: =IF(A19=0,0,(70%*(H18+D18))) -> 77320.18 | H19: =IF(A19=0,0,(G19)*(1+F19)) -> 84278.9962 | I19: =D19+H19 -> 130671.1042 | J19: =IF(A19=0,0,D19/(D19+H19)) -> 0.3550295858 | K19: =IF(A19=0,0,H19/(D19+H19)) -> 0.6449704142 | L19: =C19/(C19+G19) -> 0.3 | M19: =G19/(C19+G19) -> 0.7 | N19: 0.3550295858 | O19: =H19/I19 -> 0.6449704142
A20: 4 | B20: 0.6 | C20: =IF(A20=0,0,(30%*(D19+H19))) -> 39201.33126 | D20: =IF(A20=0,0,(C20)*(1+B20)) -> 62722.13002 | F20: 0.09 | G20: =IF(A20=0,0,(70%*(H19+D19))) -> 91469.77294 | H20: =IF(A20=0,0,(G20)*(1+F20)) -> 99702.0525 | I20: =D20+H20 -> 162424.1825 | J20: =IF(A20=0,0,D20/(D20+H20)) -> 0.3861625101 | K20: =IF(A20=0,0,H20/(D20+H20)) -> 0.6138374899 | L20: =C20/(C20+G20) -> 0.3 | M20: =G20/(C20+G20) -> 0.7 | N20: 0.3861625101 | O20: =H20/I20 -> 0.6138374899
A21: 5 | B21: -0.3 | C21: =IF(A21=0,0,(30%*(D20+H20))) -> 48727.25476 | D21: =IF(A21=0,0,(C21)*(1+B21)) -> 34109.07833 | F21: 0.09 | G21: =IF(A21=0,0,(70%*(H20+D20))) -> 113696.9278 | H21: =IF(A21=0,0,(G21)*(1+F21)) -> 123929.6513 | I21: =D21+H21 -> 158038.7296 | J21: =IF(A21=0,0,D21/(D21+H21)) -> 0.2158273381 | K21: =IF(A21=0,0,H21/(D21+H21)) -> 0.7841726619 | L21: =C21/(C21+G21) -> 0.3 | M21: =G21/(C21+G21) -> 0.7 | N21: 0.2158273381 | O21: =H21/I21 -> 0.7841726619
A23: In this case the rebalanced porfolio has done better.
A24: Is rebalancing crucial? It can be most times. The most important thing is what is your expected corpus for a goal. If this amount
A25: is lower then the corpus achieved with no rebalancing than your goal can be achieved.
A26: However there is no way of knowing this. Have a look at the sample data. It seems advantageous more often to rebalance
A27: In this example the rebalanced portfolio is 7% higher. A difference of greater than 5% can be taken as significant.

Sheet Annual Rebalancing Lumpsum
A1: Enter data only in green cells | H1: No Rebalancing | U1: Annual Rebalancing
A2: Enter no of years (max 32) | D2: 15 | H2: Year of | I2: Year | J2: Sensex | K2: investment | L2: Total Corpus | N2: FD | O2: Monthly | P2: Total | R2: Asset Allocation | U2: Year of | V2: Year | W2: Sensex | X2: Investment | Y2: Total | AA2: FD | AB2: Monthly | AC2: Total | AE2: Asset Allocation
A3: Choose a starting year between | D3: 1980 | E3: and | F3: =2011-time1+1 -> 1997 | H3: return | J3: return | N3: return | R3: After Investment | U3: return | W3: return | AA3: return | AE3: After investment
A4: Starting year | C4: 1997 | R4: Equity | S4: Debt | AE4: Equity | AF4: Debt
H5: 1980 | I5: =IF(N3=start-1+time1,0,IF(I3<>0,I3+1,IF(H5=start,1,0))) -> 0 | J5: 0.3489927666 | K5: =IF(N3=start-1+time1,0,IF(H5=start,cont1*eqper,0)) -> 0 | L5: =IF(I5=0,0,(K5+L3)*(1+J5)) -> 0 | M5: =IF(I5=time1,L5,0) -> 0 | N5: 0.075 | O5: =IF(N3=start-1+time1,0,IF(H5=start,cont1*bondper,0)) -> 0 | P5: =IF(I5=0,0,(O5+P3)*(1+N5)) -> 0 | Q5: =IF(I5=time1,P5,0) -> 0 | R5: =IF(I5=0,0,L5/(L5+P5)) -> 0 | S5: =IF(I5=0,0,P5/(L5+P5)) -> 0 | U5: 1980 | V5: =IF(AA3=start-1+time1,0,IF(V3<>0,V3+1,IF(U5=start,1,0))) -> 0 | W5: 0.3489927666 | X5: =IF(AA3=start-1+time1,0,IF(U5=start,cont1*eqper,0)) -> 0 | Y5: =IF(V5=0,0,(X5+eqper*(Y3+AC3))*(1+W5)) -> 0 | Z5: =IF(V5=time1,Y5,0) -> 0 | AA5: 0.075 | AB5: =IF(AA3=start-1+time1,0,IF(U5=start,cont1*bondper,0)) -> 0 | AC5: =IF(V5=0,0,(AB5+bondper*(Y3+AC3))*(1+AA5)) -> 0 | AD5: =IF(V5=time1,AC5,0) -> 0 | AE5: =IF(V5=0,0,Y5/(Y5+AC5)) -> 0 | AF5: =IF(V5=0,0,AC5/(Y5+AC5)) -> 0
A6: Lumpsum investment | D6: 100000 | H6: =H5+1 -> 1981 | I6: =IF(H5=start-1+time1,0,IF(I5<>0,I5+1,IF(H6=start,1,0))) -> 0 | J6: 0.2552467712 | K6: =IF(N5=start-1+time1,0,IF(H6=start,cont1*eqper,0)) -> 0 | L6: =IF(I6=0,0,(K6+L5)*(1+J6)) -> 0 | M6: 0 | N6: 0.08 | O6: =IF(N5=start-1+time1,0,IF(H6=start,cont1*bondper,0)) -> 0 | P6: =IF(I6=0,0,(O6+P5)*(1+N6)) -> 0 | Q6: 0 | R6: 0 | S6: 0 | U6: =U5+1 -> 1981 | V6: =IF(U5=start-1+time1,0,IF(V5<>0,V5+1,IF(U6=start,1,0))) -> 0 | W6: 0.2552467712 | X6: =IF(AA5=start-1+time1,0,IF(U6=start,cont1*eqper,0)) -> 0 | Y6: =IF(V6=0,0,(X6+eqper*(Y5+AC5))*(1+W6)) -> 0 | Z6: 0 | AA6: 0.08 | AB6: =IF(AA5=start-1+time1,0,IF(U6=start,cont1*bondper,0)) -> 0 | AC6: =IF(V6=0,0,(AB6+bondper*(Y5+AC5))*(1+AA6)) -> 0 | AD6: 0 | AE6: 0 | AF6: 0
H7: =H6+1 -> 1982 | I7: 0 | J7: -0.02847825088 | K7: 0 | L7: 0 | M7: 0 | N7: 0.08 | O7: 0 | P7: 0 | Q7: 0 | R7: 0 | S7: 0 | U7: =U6+1 -> 1982 | V7: 0 | W7: -0.02847825088 | X7: 0 | Y7: 0 | Z7: 0 | AA7: 0.08 | AB7: 0 | AC7: 0 | AD7: 0 | AE7: 0 | AF7: 0
H8: 1983 | I8: 0 | J8: 0.1598978772 | K8: 0 | L8: 0 | M8: 0 | N8: 0.08 | O8: 0 | P8: 0 | Q8: 0 | R8: 0 | S8: 0 | U8: 1983 | V8: 0 | W8: 0.1598978772 | X8: 0 | Y8: 0 | Z8: 0 | AA8: 0.08 | AB8: 0 | AC8: 0 | AD8: 0 | AE8: 0 | AF8: 0
A9: % in equities | B9: 0.7 | C9: % in FDs | D9: =100%-eqper -> 0.3 | H9: 1984 | I9: 0 | J9: 0.442383728 | K9: 0 | L9: 0 | M9: 0 | N9: 0.08 | O9: 0 | P9: 0 | Q9: 0 | R9: 0 | S9: 0 | U9: 1984 | V9: 0 | W9: 0.442383728 | X9: 0 | Y9: 0 | Z9: 0 | AA9: 0.08 | AB9: 0 | AC9: 0 | AD9: 0 | AE9: 0 | AF9: 0
H10: 1985 | I10: 0 | J10: 0.6224212966 | K10: 0 | L10: 0 | M10: 0 | N10: 0.085 | O10: 0 | P10: 0 | Q10: 0 | R10: 0 | S10: 0 | U10: 1985 | V10: 0 | W10: 0.6224212966 | X10: 0 | Y10: 0 | Z10: 0 | AA10: 0.085 | AB10: 0 | AC10: 0 | AD10: 0 | AE10: 0 | AF10: 0
A11: Total must be 100% | H11: 1986 | I11: 0 | J11: -0.1110414381 | K11: 0 | L11: 0 | M11: 0 | N11: 0.085 | O11: 0 | P11: 0 | Q11: 0 | R11: 0 | S11: 0 | U11: 1986 | V11: 0 | W11: -0.1110414381 | X11: 0 | Y11: 0 | Z11: 0 | AA11: 0.085 | AB11: 0 | AC11: 0 | AD11: 0 | AE11: 0 | AF11: 0
H12: 1987 | I12: 0 | J12: -0.2194333412 | K12: 0 | L12: 0 | M12: 0 | N12: 0.09 | O12: 0 | P12: 0 | Q12: 0 | R12: 0 | S12: 0 | U12: 1987 | V12: 0 | W12: -0.2194333412 | X12: 0 | Y12: 0 | Z12: 0 | AA12: 0.09 | AB12: 0 | AC12: 0 | AD12: 0 | AE12: 0 | AF12: 0
B13: Equity corpus | C13: Debt Corpus | D13: Total corpus | E13: % Equity | F13: %Debt | H13: 1988 | I13: 0 | J13: 0.7912995456 | K13: 0 | L13: 0 | M13: 0 | N13: 0.09 | O13: 0 | P13: 0 | Q13: 0 | R13: 0 | S13: 0 | U13: 1988 | V13: 0 | W13: 0.7912995456 | X13: 0 | Y13: 0 | Z13: 0 | AA13: 0.09 | AB13: 0 | AC13: 0 | AD13: 0 | AE13: 0 | AF13: 0
A14: no rebalancing | B14: =MAX(M2:M57) -> 362491.4829 | C14: =MAX(Q2:Q57) -> 92042.93499 | D14: =B14+C14 -> 454534.4179 | E14: =B14/D14 -> 0.7975006262 | F14: =C14/D14 -> 0.2024993738 | H14: 1989 | I14: 0 | J14: 0.09452073991 | K14: 0 | L14: 0 | M14: 0 | N14: 0.09 | O14: 0 | P14: 0 | Q14: 0 | R14: 0 | S14: 0 | U14: 1989 | V14: 0 | W14: 0.09452073991 | X14: 0 | Y14: 0 | Z14: 0 | AA14: 0.09 | AB14: 0 | AC14: 0 | AD14: 0 | AE14: 0 | AF14: 0
A15: annual rebalancing | B15: =MAX(Z3:Z58) -> 336354.1365 | C15: =MAX(AD3:AD58) -> 178770.9091 | D15: =B15+C15 -> 515125.0456 | E15: =B15/D15 -> 0.6529562858 | F15: =C15/D15 -> 0.3470437142 | H15: 1990 | I15: 0 | J15: 0.4953844184 | K15: 0 | L15: 0 | M15: 0 | N15: 0.09 | O15: 0 | P15: 0 | Q15: 0 | R15: 0 | S15: 0 | U15: 1990 | V15: 0 | W15: 0.4953844184 | X15: 0 | Y15: 0 | Z15: 0 | AA15: 0.09 | AB15: 0 | AC15: 0 | AD15: 0 | AE15: 0 | AF15: 0
A16: The % equity and debt shown here represents the final asset allocation | H16: 1991 | I16: 0 | J16: 2.668758615 | K16: 0 | L16: 0 | M16: 0 | N16: 0.12 | O16: 0 | P16: 0 | Q16: 0 | R16: 0 | S16: 0 | U16: 1991 | V16: 0 | W16: 2.668758615 | X16: 0 | Y16: 0 | Z16: 0 | AA16: 0.12 | AB16: 0 | AC16: 0 | AD16: 0 | AE16: 0 | AF16: 0
A17: % difference bet the two corpuses | C17: =(D15-D14)/D14 -> 0.1333026175 | H17: 1992 | I17: 0 | J17: -0.467789965 | K17: 0 | L17: 0 | M17: 0 | N17: 0.11 | O17: 0 | P17: 0 | Q17: 0 | R17: 0 | S17: 0 | U17: 1992 | V17: 0 | W17: -0.467789965 | X17: 0 | Y17: 0 | Z17: 0 | AA17: 0.11 | AB17: 0 | AC17: 0 | AD17: 0 | AE17: 0 | AF17: 0
A18: +ve means rebalanced portfolio is higher | H18: 1993 | I18: 0 | J18: 0.6570738253 | K18: 0 | L18: 0 | M18: 0 | N18: 0.1 | O18: 0 | P18: 0 | Q18: 0 | R18: 0 | S18: 0 | U18: 1993 | V18: 0 | W18: 0.6570738253 | X18: 0 | Y18: 0 | Z18: 0 | AA18: 0.1 | AB18: 0 | AC18: 0 | AD18: 0 | AE18: 0 | AF18: 0
A19: Click on the macro to find out the % difference | H19: 1994 | I19: 0 | J19: -0.1370816012 | K19: 0 | L19: 0 | M19: 0 | N19: 0.11 | O19: 0 | P19: 0 | Q19: 0 | R19: 0 | S19: 0 | U19: 1994 | V19: 0 | W19: -0.1370816012 | X19: 0 | Y19: 0 | Z19: 0 | AA19: 0.11 | AB19: 0 | AC19: 0 | AD19: 0 | AE19: 0 | AF19: 0
A20: between the two corpuses for all possible | H20: 1995 | I20: 0 | J20: 0.03239843482 | K20: 0 | L20: 0 | M20: 0 | N20: 0.12 | O20: 0 | P20: 0 | Q20: 0 | R20: 0 | S20: 0 | U20: 1995 | V20: 0 | W20: 0.03239843482 | X20: 0 | Y20: 0 | Z20: 0 | AA20: 0.12 | AB20: 0 | AC20: 0 | AD20: 0 | AE20: 0 | AF20: 0
A21: investment durations between | H21: 1996 | I21: 0 | J21: -0.001699038499 | K21: 0 | L21: 0 | M21: 0 | N21: 0.12 | O21: 0 | P21: 0 | Q21: 0 | R21: 0 | S21: 0 | U21: 1996 | V21: 0 | W21: -0.001699038499 | X21: 0 | Y21: 0 | Z21: 0 | AA21: 0.12 | AB21: 0 | AC21: 0 | AD21: 0 | AE21: 0 | AF21: 0
A22: =D3 -> 1980 | B22: and | C22: =F3 -> 1997 | H22: 1997 | I22: 1 | J22: 0.1582497493 | K22: 70000 | L22: 81077.48245 | M22: 0 | N22: 0.11 | O22: 30000 | P22: 33300 | Q22: 0 | R22: 0.7088587781 | S22: 0.2911412219 | U22: 1997 | V22: 1 | W22: 0.1582497493 | X22: 70000 | Y22: 81077.48245 | Z22: 0 | AA22: 0.11 | AB22: 30000 | AC22: 33300 | AD22: 0 | AE22: 0.7088587781 | AF22: 0.2911412219
A23: Average % difference bet the two corpuses | D23: =AVERAGE(B26:B48) -> 0.1679644778 | H23: 1998 | I23: 2 | J23: -0.03924988761 | K23: 0 | L23: 77895.20038 | M23: 0 | N23: 0.105 | O23: 0 | P23: 36796.5 | Q23: 0 | R23: 0.6791703333 | S23: 0.3208296667 | U23: 1998 | V23: 2 | W23: -0.03924988761 | X23: 0 | Y23: 76921.72538 | Z23: 0 | AA23: 0.105 | AB23: 0 | AC23: 37916.13543 | AD23: 0 | AE23: 0.6698289644 | AF23: 0.3301710356
H24: 1999 | I24: 3 | J24: 0.3372549439 | K24: 0 | L24: 104165.7418 | M24: 0 | N24: 0.085 | O24: 0 | P24: 39924.2025 | Q24: 0 | R24: 0.7229216606 | S24: 0.2770783394 | U24: 1999 | V24: 3 | W24: 0.3372549439 | X24: 0 | Y24: 107497.248 | Z24: 0 | AA24: 0.085 | AB24: 0 | AC24: 37379.7237 | AD24: 0 | AE24: 0.741989888 | AF24: 0.258010112
A25: Year | B25: % difference | H25: 2000 | I25: 4 | J25: -0.279308497 | K25: 0 | L25: 75071.36503 | M25: 0 | N25: 0.085 | O25: 0 | P25: 43317.75971 | Q25: 0 | R25: 0.634106935 | S25: 0.365893065 | U25: 2000 | V25: 4 | W25: -0.279308497 | X25: 0 | Y25: 73088.12173 | Z25: 0 | AA25: 0.085 | AB25: 0 | AC25: 47157.45428 | AD25: 0 | AE25: 0.6078237899 | AF25: 0.3921762101
A26: 1980 | B26: 0.009373443876 | H26: 2001 | I26: 5 | J26: -0.03746275365 | K26: 0 | L26: 72258.98497 | M26: 0 | N26: 0.075 | O26: 0 | P26: 46566.59169 | Q26: 0 | R26: 0.6081096932 | S26: 0.3918903068 | U26: 2001 | V26: 5 | W26: -0.03746275365 | X26: 0 | Y26: 81018.59193 | Z26: 0 | AA26: 0.075 | AB26: 0 | AC26: 38779.19826 | AD26: 0 | AE26: 0.6762945443 | AF26: 0.3237054557
A27: 1981 | B27: 0.07934333784 | H27: 2002 | I27: 6 | J27: -0.1212417312 | K27: 0 | L27: 63498.18054 | M27: 0 | N27: 0.0425 | O27: 0 | P27: 48545.67184 | Q27: 0 | R27: 0.5667261451 | S27: 0.4332738549 | U27: 2002 | V27: 6 | W27: -0.1212417312 | X27: 0 | Y27: 73691.30911 | Z27: 0 | AA27: 0.0425 | AB27: 0 | AC27: 37466.75888 | AD27: 0 | AE27: 0.6629416149 | AF27: 0.3370583851
A28: 1982 | B28: 0.1406057288 | H28: 2003 | I28: 7 | J28: 0.8337531817 | K28: 0 | L28: 116439.9906 | M28: 0 | N28: 0.04 | O28: 0 | P28: 50487.49871 | Q28: 0 | R28: 0.6975483252 | S28: 0.3024516748 | U28: 2003 | V28: 7 | W28: 0.8337531817 | X28: 0 | Y28: 142685.5226 | Z28: 0 | AA28: 0.04 | AB28: 0 | AC28: 34681.31721 | AD28: 0 | AE28: 0.8044656078 | AF28: 0.1955343922
A29: 1983 | B29: 0.1050282993 | H29: 2004 | I29: 8 | J29: 0.1613816048 | K29: 0 | L29: 135231.2631 | M29: 0 | N29: 0.0525 | O29: 0 | P29: 53138.09239 | Q29: 0 | R29: 0.7179047927 | S29: 0.2820952073 | U29: 2004 | V29: 8 | W29: 0.1613816048 | X29: 0 | Y29: 144193.4095 | Z29: 0 | AA29: 0.0525 | AB29: 0 | AC29: 56003.57967 | AD29: 0 | AE29: 0.7202576328 | AF29: 0.2797423672
A30: 1984 | B30: 0.1554985341 | H30: 2005 | I30: 9 | J30: 0.7373036677 | K30: 0 | L30: 234937.7695 | M30: 0 | N30: 0.06 | O30: 0 | P30: 56326.37794 | Q30: 0 | R30: 0.8066141046 | S30: 0.1933858954 | U30: 2005 | V30: 9 | W30: 0.7373036677 | X30: 0 | Y30: 243462.0745 | Z30: 0 | AA30: 0.06 | AB30: 0 | AC30: 63662.64257 | AD30: 0 | AE30: 0.7927140376 | AF30: 0.2072859624
A31: 1985 | B31: 0.1686687865 | H31: 2006 | I31: 10 | J31: 0.1588741135 | K31: 0 | L31: 272263.2993 | M31: 0 | N31: 0.0625 | O31: 0 | P31: 59846.77656 | Q31: 0 | R31: 0.8197983714 | S31: 0.1802016286 | U31: 2006 | V31: 10 | W31: 0.1588741135 | X31: 0 | Y31: 249143.219 | Z31: 0 | AA31: 0.0625 | AB31: 0 | AC31: 97896.00358 | AD31: 0 | AE31: 0.7179108377 | AF31: 0.2820891623
A32: 1986 | B32: 0.3089582403 | H32: 2007 | I32: 11 | J32: 0.1967778704 | K32: 0 | L32: 325838.6915 | M32: 0 | N32: 0.07 | O32: 0 | P32: 64036.05092 | Q32: 0 | R32: 0.8357522457 | S32: 0.1642477543 | U32: 2007 | V32: 11 | W32: 0.1967778704 | X32: 0 | Y32: 290730.2032 | Z32: 0 | AA32: 0.07 | AB32: 0 | AC32: 111399.5904 | AD32: 0 | AE32: 0.7229760336 | AF32: 0.2770239664
A33: 1987 | B33: 0.2953370663 | H33: 2008 | I33: 12 | J33: -0.3794265041 | K33: 0 | L33: 202206.8559 | M33: 0 | N33: 0.08 | O33: 0 | P33: 69158.93499 | Q33: 0 | R33: 0.7451449766 | S33: 0.2548550234 | U33: 2008 | V33: 12 | W33: -0.3794265041 | X33: 0 | Y33: 174685.7643 | Z33: 0 | AA33: 0.08 | AB33: 0 | AC33: 130290.0531 | AD33: 0 | AE33: 0.5727856253 | AF33: 0.4272143747
A34: 1988 | B34: 0.261910831 | H34: 2009 | I34: 13 | J34: 0.8053252305 | K34: 0 | L34: 365049.1388 | M34: 0 | N34: 0.09 | O34: 0 | P34: 75383.23914 | Q34: 0 | R34: 0.8288426489 | S34: 0.1711573511 | U34: 2009 | V34: 13 | W34: 0.8053252305 | X34: 0 | Y34: 385406.3766 | Z34: 0 | AA34: 0.09 | AB34: 0 | AC34: 99727.09231 | AD34: 0 | AE34: 0.7944336998 | AF34: 0.2055663002
A35: 1989 | B35: 0.2598094233 | H35: 2010 | I35: 14 | J35: 0.1094311633 | K35: 0 | L35: 404996.8907 | M35: 0 | N35: 0.1 | O35: 0 | P35: 82921.56305 | Q35: 0 | R35: 0.8300503651 | S35: 0.1699496349 | U35: 2010 | V35: 14 | W35: 0.1094311633 | X35: 0 | Y35: 376755.5321 | Z35: 0 | AA35: 0.1 | AB35: 0 | AC35: 160094.0447 | AD35: 0 | AE35: 0.7017897533 | AF35: 0.2982102467
A36: 1990 | B36: 0.2452115785 | H36: 2011 | I36: 15 | J36: -0.1049524299 | K36: 0 | L36: 362491.4829 | M36: 362491.4829 | N36: 0.11 | O36: 0 | P36: 92042.93499 | Q36: 92042.93499 | R36: 0.7975006262 | S36: 0.2024993738 | U36: 2011 | V36: 15 | W36: -0.1049524299 | X36: 0 | Y36: 336354.1365 | Z36: 336354.1365 | AA36: 0.11 | AB36: 0 | AC36: 178770.9091 | AD36: 178770.9091 | AE36: 0.6529562858 | AF36: 0.3470437142
A37: 1991 | B37: 0.2288179187 | H37: Note 35% returns listed against 1980 actually is the return
A38: 1992 | B38: 0.1878134113 | H38: generated in the financial year 1980-1981
A39: 1993 | B39: 0.06361595373
A40: 1994 | B40: 0.133796328
A41: 1995 | B41: 0.1288938522
A42: 1996 | B42: 0.1173752485
A43: 1997 | B43: 0.1333026175

Sheet Annual Rebalancing SIP
A1: Enter data only in green cells | H1: No Rebalancing | Y1: Annual Rebalancing
A2: Enter no of years (max 32) | D2: 15 | H2: Year of | I2: Year | J2: Sensex | K2: Annual | L2: invest. From | M2: Total Equity | O2: FD | P2: Annual | Q2: invest. From | R2: Total Debt | T2: Asset Allocation | Y2: Year of | Z2: Year | AA2: Sensex | AB2: Annual | AC2: invest. From | AD2: Total Equity | AF2: FD | AG2: Annual | AH2: invest. From | AI2: Total Debt | AK2: Asset Allocation
A3: Choose a starting year between | D3: 1980 | E3: and | F3: =2011-time1+1 -> 1997 | H3: return | J3: return | K3: investment | L3: Previous | M3: Corpus | O3: return | P3: investment | Q3: Previous | R3: Corpus | T3: Equity | U3: Debt | V3: Equity | W3: Debt | AA3: return | AB3: Investment | AC3: Previous | AD3: Corpus | AF3: return | AG3: investment | AH3: Previous | AI3: Corpus | AK3: Equity | AL3: Debt | AM3: Equity | AN3: Debt
A4: Starting year | C4: 1997 | L4: year | Q4: year | T4: Prior investment | V4: After investment | Y4: return | AC4: year | AH4: year | AK4: Prior investment | AM4: After investment
H5: 1980 | I5: =IF(H4=start-1+time1,0,IF(I4<>0,I4+1,IF(H5=start,1,0))) -> 0 | J5: 0.3489927666 | K5: =IF(I5=0,0,IF(O4=start-1+time1,0,IF(K4<>0,K4*(1+inca),IF(H5=start,12*cont1*eqper,0)))) -> 0 | L5: =IF(I5=1,0,IF(I5=0,0,M4)) -> 0 | M5: =IF(I5=0,0,IF(I5=1,K5*(1+J5),(L5+K5)*(1+J5))) -> 0 | N5: =IF(I5=time1,M5,0) -> 0 | O5: 0.075 | P5: =IF(I5=0,0,IF(O4=start-1+time1,0,IF(K4<>0,K4*(1+inca),IF(H5=start,12*cont1*bondper,0)))) -> 0 | Q5: =IF(I5=1,0,IF(I5=0,0,R4)) -> 0 | R5: =IF(I5=0,0,IF(I5=1,P5*(1+O5),(Q5+P5)*(1+O5))) -> 0 | S5: =IF(I5=time1,R5,0) -> 0 | T5: =IF(I5=0,0,(K5+L5)/(K5+L5+P5+Q5)) -> 0 | U5: =IF(I5=0,0,(P5+Q5)/(K5+L5+P5+Q5)) -> 0 | V5: =IF(I5=0,0,M5/(M5+R5)) -> 0 | W5: =IF(I5=0,0,R5/(M5+R5)) -> 0 | Y5: 1980 | Z5: =IF(AF4=start-1+time1,0,IF(Z4<>0,Z4+1,IF(Y5=start,1,0))) -> 0 | AA5: 0.3489927666 | AB5: =IF(Z5=0,0,IF(AF4=start-1+time1,0,IF(AB4<>0,AB4*(1+inca),IF(Y5=start,12*cont1*eqper,0)))) -> 0 | AC5: =IF(Z5=1,0,IF(Z5=0,0,eqper*(AD4+AI4))) -> 0 | AD5: =IF(Z5=0,0,(AB5+AC5)*(1+AA5)) -> 0 | AE5: =IF(Z5=time1,AD5,0) -> 0 | AF5: 0.075 | AG5: =IF(Z5=0,0,IF(AF4=start-1+time1,0,IF(AG4<>0,AG4*(1+inca),IF(Y5=start,12*cont1*bondper,0)))) -> 0 | AH5: =IF(Z5=1,0,IF(Z5=0,0,bondper*(AD4+AI4))) -> 0 | AI5: =IF(Z5=0,0,(AG5+AH5)*(1+AF5)) -> 0 | AJ5: =IF(Z5=time1,AI5,0) -> 0 | AK5: =IF(Z5=0,0,(AB5+AC5)/(AB5+AC5+AG5+AH5)) -> 0 | AL5: =IF(Z5=0,0,(AG5+AH5)/(AB5+AC5+AG5+AH5)) -> 0 | AM5: =IF(Z5=0,0,AD5/(AD5+AI5)) -> 0 | AN5: =IF(Z5=0,0,AI5/(AD5+AI5)) -> 0
A6: monthly contribution in 1st year | D6: 25000 | H6: =H5+1 -> 1981 | I6: 0 | J6: 0.2552467712 | K6: 0 | L6: =IF(I6=1,0,IF(I6=0,0,M5)) -> 0 | M6: =IF(I6=0,0,IF(I6=1,K6*(1+J6),(L6+K6)*(1+J6))) -> 0 | N6: 0 | O6: 0.08 | P6: 0 | Q6: =IF(I6=1,0,IF(I6=0,0,R5)) -> 0 | R6: =IF(I6=0,0,IF(I6=1,P6*(1+O6),(Q6+P6)*(1+O6))) -> 0 | S6: 0 | T6: =IF(I6=0,0,(K6+L6)/(K6+L6+P6+Q6)) -> 0 | U6: =IF(I6=0,0,(P6+Q6)/(K6+L6+P6+Q6)) -> 0 | V6: 0 | W6: 0 | Y6: =Y5+1 -> 1981 | Z6: =IF(Y5=start-1+time1,0,IF(Z5<>0,Z5+1,IF(Y6=start,1,0))) -> 0 | AA6: 0.2552467712 | AB6: 0 | AC6: 0 | AD6: =IF(Z6=0,0,(AB6+AC6)*(1+AA6)) -> 0 | AE6: 0 | AF6: 0.08 | AG6: =IF(Z6=0,0,IF(AF5=start-1+time1,0,IF(AG5<>0,AG5*(1+inca),IF(Y6=start,12*cont1*bondper,0)))) -> 0 | AH6: 0 | AI6: =IF(Z6=0,0,(AG6+AH6)*(1+AF6)) -> 0 | AJ6: 0 | AK6: =IF(Z6=0,0,(AB6+AC6)/(AB6+AC6+AG6+AH6)) -> 0 | AL6: =IF(Z6=0,0,(AG6+AH6)/(AB6+AC6+AG6+AH6)) -> 0 | AM6: =IF(Z6=0,0,AD6/(AD6+AI6)) -> 0 | AN6: =IF(Z6=0,0,AI6/(AD6+AI6)) -> 0
A7: % increase or | B7: decrease each year | H7: =H6+1 -> 1982 | I7: 0 | J7: -0.02847825088 | K7: 0 | L7: 0 | M7: 0 | N7: 0 | O7: 0.08 | P7: 0 | Q7: 0 | R7: 0 | S7: 0 | T7: 0 | U7: 0 | V7: 0 | W7: 0 | Y7: =Y6+1 -> 1982 | Z7: 0 | AA7: -0.02847825088 | AB7: 0 | AC7: 0 | AD7: 0 | AE7: 0 | AF7: 0.08 | AG7: =IF(Z7=0,0,IF(AF6=start-1+time1,0,IF(AG6<>0,AG6*(1+inca),IF(Y7=start,12*cont1*bondper,0)))) -> 0 | AH7: 0 | AI7: 0 | AJ7: 0 | AK7: 0 | AL7: 0 | AM7: 0 | AN7: 0
H8: 1983 | I8: 0 | J8: 0.1598978772 | K8: 0 | L8: 0 | M8: 0 | N8: 0 | O8: 0.08 | P8: 0 | Q8: 0 | R8: 0 | S8: 0 | T8: 0 | U8: 0 | V8: 0 | W8: 0 | Y8: 1983 | Z8: 0 | AA8: 0.1598978772 | AB8: 0 | AC8: 0 | AD8: 0 | AE8: 0 | AF8: 0.08 | AG8: =IF(Z8=0,0,IF(AF7=start-1+time1,0,IF(AG7<>0,AG7*(1+inca),IF(Y8=start,12*cont1*bondper,0)))) -> 0 | AH8: 0 | AI8: 0 | AJ8: 0 | AK8: 0 | AL8: 0 | AM8: 0 | AN8: 0
A9: % in equities | B9: 0.5 | C9: % in FDs | D9: =100%-eqper -> 0.5 | H9: 1984 | I9: 0 | J9: 0.442383728 | K9: 0 | L9: 0 | M9: 0 | N9: =IF(I9=time1,M9,0) -> 0 | O9: 0.08 | P9: 0 | Q9: 0 | R9: 0 | S9: 0 | T9: 0 | U9: 0 | V9: 0 | W9: 0 | Y9: 1984 | Z9: 0 | AA9: 0.442383728 | AB9: 0 | AC9: 0 | AD9: 0 | AE9: =IF(Z9=time1,AD9,0) -> 0 | AF9: 0.08 | AG9: =IF(Z9=0,0,IF(AF8=start-1+time1,0,IF(AG8<>0,AG8*(1+inca),IF(Y9=start,12*cont1*bondper,0)))) -> 0 | AH9: 0 | AI9: 0 | AJ9: 0 | AK9: 0 | AL9: 0 | AM9: 0 | AN9: 0
H10: 1985 | I10: 0 | J10: 0.6224212966 | K10: 0 | L10: 0 | M10: 0 | N10: =IF(I10=time1,M10,0) -> 0 | O10: 0.085 | P10: 0 | Q10: 0 | R10: 0 | S10: 0 | T10: 0 | U10: 0 | V10: 0 | W10: 0 | Y10: 1985 | Z10: 0 | AA10: 0.6224212966 | AB10: 0 | AC10: 0 | AD10: 0 | AE10: =IF(Z10=time1,AD10,0) -> 0 | AF10: 0.085 | AG10: =IF(Z10=0,0,IF(AF9=start-1+time1,0,IF(AG9<>0,AG9*(1+inca),IF(Y10=start,12*cont1*bondper,0)))) -> 0 | AH10: 0 | AI10: 0 | AJ10: 0 | AK10: 0 | AL10: 0 | AM10: 0 | AN10: 0
A11: Total must be 100% | H11: 1986 | I11: 0 | J11: -0.1110414381 | K11: 0 | L11: 0 | M11: 0 | N11: 0 | O11: 0.085 | P11: 0 | Q11: 0 | R11: 0 | S11: 0 | T11: 0 | U11: 0 | V11: 0 | W11: 0 | Y11: 1986 | Z11: 0 | AA11: -0.1110414381 | AB11: 0 | AC11: 0 | AD11: 0 | AE11: =IF(Z11=time1,AD11,0) -> 0 | AF11: 0.085 | AG11: =IF(Z11=0,0,IF(AF10=start-1+time1,0,IF(AG10<>0,AG10*(1+inca),IF(Y11=start,12*cont1*bondper,0)))) -> 0 | AH11: 0 | AI11: 0 | AJ11: 0 | AK11: 0 | AL11: 0 | AM11: 0 | AN11: 0
H12: 1987 | I12: 0 | J12: -0.2194333412 | K12: 0 | L12: 0 | M12: 0 | N12: 0 | O12: 0.09 | P12: 0 | Q12: 0 | R12: 0 | S12: 0 | T12: 0 | U12: 0 | V12: 0 | W12: 0 | Y12: 1987 | Z12: 0 | AA12: -0.2194333412 | AB12: 0 | AC12: 0 | AD12: 0 | AE12: 0 | AF12: 0.09 | AG12: =IF(Z12=0,0,IF(AF11=start-1+time1,0,IF(AG11<>0,AG11*(1+inca),IF(Y12=start,12*cont1*bondper,0)))) -> 0 | AH12: 0 | AI12: 0 | AJ12: 0 | AK12: 0 | AL12: 0 | AM12: 0 | AN12: 0
B13: Equity corpus | C13: Debt Corpus | D13: Total corpus | E13: % Equity | F13: %Debt | H13: 1988 | I13: 0 | J13: 0.7912995456 | K13: 0 | L13: 0 | M13: 0 | N13: 0 | O13: 0.09 | P13: 0 | Q13: 0 | R13: 0 | S13: 0 | T13: 0 | U13: 0 | V13: 0 | W13: 0 | Y13: 1988 | Z13: 0 | AA13: 0.7912995456 | AB13: 0 | AC13: 0 | AD13: 0 | AE13: 0 | AF13: 0.09 | AG13: =IF(Z13=0,0,IF(AF12=start-1+time1,0,IF(AG12<>0,AG12*(1+inca),IF(Y13=start,12*cont1*bondper,0)))) -> 0 | AH13: 0 | AI13: 0 | AJ13: 0 | AK13: 0 | AL13: 0 | AM13: 0 | AN13: 0
A14: no rebalancing | B14: =MAX(N2:N57) -> 7019694.007 | C14: =MAX(S2:S57) -> 4269446.958 | D14: =B14+C14 -> 11289140.97 | E14: =B14/D14 -> 0.6218094033 | F14: =C14/D14 -> 0.3781905967 | H14: 1989 | I14: 0 | J14: 0.09452073991 | K14: 0 | L14: 0 | M14: 0 | N14: 0 | O14: 0.09 | P14: 0 | Q14: 0 | R14: 0 | S14: 0 | T14: 0 | U14: 0 | V14: 0 | W14: 0 | Y14: 1989 | Z14: 0 | AA14: 0.09452073991 | AB14: 0 | AC14: 0 | AD14: 0 | AE14: 0 | AF14: 0.09 | AG14: =IF(Z14=0,0,IF(AF13=start-1+time1,0,IF(AG13<>0,AG13*(1+inca),IF(Y14=start,12*cont1*bondper,0)))) -> 0 | AH14: 0 | AI14: 0 | AJ14: 0 | AK14: 0 | AL14: 0 | AM14: 0 | AN14: 0
A15: annual rebalancing | B15: =MAX(AE4:AE58) -> 5501455.407 | C15: =MAX(AJ4:AJ58) -> 6822671.449 | D15: =B15+C15 -> 12324126.86 | E15: =B15/D15 -> 0.4463971745 | F15: =C15/D15 -> 0.5536028255 | H15: 1990 | I15: 0 | J15: 0.4953844184 | K15: 0 | L15: 0 | M15: 0 | N15: 0 | O15: 0.09 | P15: 0 | Q15: 0 | R15: 0 | S15: 0 | T15: 0 | U15: 0 | V15: 0 | W15: 0 | Y15: 1990 | Z15: 0 | AA15: 0.4953844184 | AB15: 0 | AC15: 0 | AD15: 0 | AE15: 0 | AF15: 0.09 | AG15: =IF(Z15=0,0,IF(AF14=start-1+time1,0,IF(AG14<>0,AG14*(1+inca),IF(Y15=start,12*cont1*bondper,0)))) -> 0 | AH15: 0 | AI15: 0 | AJ15: 0 | AK15: 0 | AL15: 0 | AM15: 0 | AN15: 0
A16: The % equity and debt shown here represents the final asset allocation | H16: 1991 | I16: 0 | J16: 2.668758615 | K16: 0 | L16: 0 | M16: 0 | N16: 0 | O16: 0.12 | P16: 0 | Q16: 0 | R16: 0 | S16: 0 | T16: 0 | U16: 0 | V16: 0 | W16: 0 | Y16: 1991 | Z16: 0 | AA16: 2.668758615 | AB16: 0 | AC16: 0 | AD16: 0 | AE16: 0 | AF16: 0.12 | AG16: =IF(Z16=0,0,IF(AF15=start-1+time1,0,IF(AG15<>0,AG15*(1+inca),IF(Y16=start,12*cont1*bondper,0)))) -> 0 | AH16: 0 | AI16: 0 | AJ16: 0 | AK16: 0 | AL16: 0 | AM16: 0 | AN16: 0
A17: % difference bet the two corpuses | C17: =(D15-D14)/D14 -> 0.09167977391 | D17: if started at | E17: =start -> 1997 | H17: 1992 | I17: 0 | J17: -0.467789965 | K17: 0 | L17: 0 | M17: 0 | N17: 0 | O17: 0.11 | P17: 0 | Q17: 0 | R17: 0 | S17: 0 | T17: 0 | U17: 0 | V17: 0 | W17: 0 | Y17: 1992 | Z17: 0 | AA17: -0.467789965 | AB17: 0 | AC17: 0 | AD17: 0 | AE17: 0 | AF17: 0.11 | AG17: =IF(Z17=0,0,IF(AF16=start-1+time1,0,IF(AG16<>0,AG16*(1+inca),IF(Y17=start,12*cont1*bondper,0)))) -> 0 | AH17: 0 | AI17: 0 | AJ17: 0 | AK17: 0 | AL17: 0 | AM17: 0 | AN17: 0
A18: +ve means rebalanced portfolio is higher | H18: 1993 | I18: 0 | J18: 0.6570738253 | K18: 0 | L18: 0 | M18: 0 | N18: 0 | O18: 0.1 | P18: 0 | Q18: 0 | R18: 0 | S18: 0 | T18: 0 | U18: 0 | V18: 0 | W18: 0 | Y18: 1993 | Z18: 0 | AA18: 0.6570738253 | AB18: 0 | AC18: 0 | AD18: 0 | AE18: 0 | AF18: 0.1 | AG18: =IF(Z18=0,0,IF(AF17=start-1+time1,0,IF(AG17<>0,AG17*(1+inca),IF(Y18=start,12*cont1*bondper,0)))) -> 0 | AH18: 0 | AI18: 0 | AJ18: 0 | AK18: 0 | AL18: 0 | AM18: 0 | AN18: 0
A19: Click on the macro to find out the % difference | H19: 1994 | I19: 0 | J19: -0.1370816012 | K19: 0 | L19: 0 | M19: 0 | N19: 0 | O19: 0.11 | P19: 0 | Q19: 0 | R19: 0 | S19: 0 | T19: 0 | U19: 0 | V19: 0 | W19: 0 | Y19: 1994 | Z19: 0 | AA19: -0.1370816012 | AB19: 0 | AC19: 0 | AD19: 0 | AE19: 0 | AF19: 0.11 | AG19: =IF(Z19=0,0,IF(AF18=start-1+time1,0,IF(AG18<>0,AG18*(1+inca),IF(Y19=start,12*cont1*bondper,0)))) -> 0 | AH19: 0 | AI19: 0 | AJ19: 0 | AK19: 0 | AL19: 0 | AM19: 0 | AN19: 0
A20: between the two corpuses for all possible | H20: 1995 | I20: 0 | J20: 0.03239843482 | K20: 0 | L20: 0 | M20: 0 | N20: 0 | O20: 0.12 | P20: 0 | Q20: 0 | R20: 0 | S20: 0 | T20: 0 | U20: 0 | V20: 0 | W20: 0 | Y20: 1995 | Z20: 0 | AA20: 0.03239843482 | AB20: 0 | AC20: 0 | AD20: 0 | AE20: 0 | AF20: 0.12 | AG20: =IF(Z20=0,0,IF(AF19=start-1+time1,0,IF(AG19<>0,AG19*(1+inca),IF(Y20=start,12*cont1*bondper,0)))) -> 0 | AH20: 0 | AI20: 0 | AJ20: 0 | AK20: 0 | AL20: 0 | AM20: 0 | AN20: 0
A21: investment durations between | H21: 1996 | I21: 0 | J21: -0.001699038499 | K21: 0 | L21: 0 | M21: 0 | N21: 0 | O21: 0.12 | P21: 0 | Q21: 0 | R21: 0 | S21: 0 | T21: 0 | U21: 0 | V21: 0 | W21: 0 | Y21: 1996 | Z21: 0 | AA21: -0.001699038499 | AB21: 0 | AC21: 0 | AD21: 0 | AE21: 0 | AF21: 0.12 | AG21: =IF(Z21=0,0,IF(AF20=start-1+time1,0,IF(AG20<>0,AG20*(1+inca),IF(Y21=start,12*cont1*bondper,0)))) -> 0 | AH21: 0 | AI21: 0 | AJ21: 0 | AK21: 0 | AL21: 0 | AM21: 0 | AN21: 0
A22: =D3 -> 1980 | B22: and | C22: =F3 -> 1997 | H22: 1997 | I22: 1 | J22: 0.1582497493 | K22: 150000 | L22: 0 | M22: 173737.4624 | N22: 0 | O22: 0.11 | P22: 150000 | Q22: 0 | R22: 166500 | S22: 0 | T22: 0.5 | U22: 0.5 | V22: 0.5106358987 | W22: 0.4893641013 | Y22: 1997 | Z22: 1 | AA22: 0.1582497493 | AB22: 150000 | AC22: 0 | AD22: 173737.4624 | AE22: 0 | AF22: 0.11 | AG22: =IF(Z22=0,0,IF(AF21=start-1+time1,0,IF(AG21<>0,AG21*(1+inca),IF(Y22=start,12*cont1*bondper,0)))) -> 150000 | AH22: 0 | AI22: 166500 | AJ22: 0 | AK22: 0.5 | AL22: 0.5 | AM22: 0.5106358987 | AN22: 0.4893641013
A23: Average % difference bet the two corpuses | D23: =AVERAGE(B26:B48) -> 0.1305410898 | H23: 1998 | I23: 2 | J23: -0.03924988761 | K23: 150000 | L23: 173737.4624 | M23: 311030.8034 | N23: 0 | O23: 0.105 | P23: 150000 | Q23: 166500 | R23: 349732.5 | S23: 0 | T23: 0.5056521703 | U23: 0.4943478297 | V23: 0.4707144023 | W23: 0.5292855977 | Y23: 1998 | Z23: 2 | AA23: -0.03924988761 | AB23: 150000 | AC23: 170118.7312 | AD23: 307554.107 | AE23: 0 | AF23: 0.105 | AG23: =IF(Z23=0,0,IF(AF22=start-1+time1,0,IF(AG22<>0,AG22*(1+inca),IF(Y23=start,12*cont1*bondper,0)))) -> 150000 | AH23: 170118.7312 | AI23: 353731.198 | AJ23: 0 | AK23: 0.5 | AL23: 0.5 | AM23: 0.4650853492 | AN23: 0.5349146508
H24: 1999 | I24: 3 | J24: 0.3372549439 | K24: 150000 | L24: 311030.8034 | M24: 616515.7211 | N24: 0 | O24: 0.085 | P24: 150000 | Q24: 349732.5 | R24: 542209.7625 | S24: 0 | T24: 0.4798588807 | U24: 0.5201411193 | V24: 0.5320636595 | W24: 0.4679363405 | Y24: 1999 | Z24: 3 | AA24: 0.3372549439 | AB24: 150000 | AC24: 330642.6525 | AD24: 642741.7633 | AE24: 0 | AF24: 0.085 | AG24: =IF(Z24=0,0,IF(AF23=start-1+time1,0,IF(AG23<>0,AG23*(1+inca),IF(Y24=start,12*cont1*bondper,0)))) -> 150000 | AH24: 330642.6525 | AI24: 521497.2779 | AJ24: 0 | AK24: 0.5 | AL24: 0.5 | AM24: 0.5520702712 | AN24: 0.4479297288
A25: Year | B25: % difference | H25: 2000 | I25: 4 | J25: -0.279308497 | K25: 150000 | L25: 616515.7211 | M25: 552421.3671 | N25: 0 | O25: 0.085 | P25: 150000 | Q25: 542209.7625 | R25: 751047.5923 | S25: 0 | T25: 0.5254694798 | U25: 0.4745305202 | V25: 0.4238086094 | W25: 0.5761913906 | Y25: 2000 | Z25: 4 | AA25: -0.279308497 | AB25: 150000 | AC25: 582119.5206 | AD25: 527632.3177 | AE25: 0 | AF25: 0.085 | AG25: =IF(Z25=0,0,IF(AF24=start-1+time1,0,IF(AG24<>0,AG24*(1+inca),IF(Y25=start,12*cont1*bondper,0)))) -> 150000 | AH25: 582119.5206 | AI25: 794349.6799 | AJ25: 0 | AK25: 0.5 | AL25: 0.5 | AM25: 0.3991221655 | AN25: 0.6008778345
A26: 1980 | B26: 0.07742175555 | H26: 2001 | I26: 5 | J26: -0.03746275365 | K26: 150000 | L26: 552421.3671 | M26: 676106.7285 | N26: 0 | O26: 0.075 | P26: 150000 | Q26: 751047.5923 | R26: 968626.1617 | S26: 0 | T26: 0.4380635889 | U26: 0.5619364111 | V26: 0.4110738786 | W26: 0.5889261214 | Y26: 2001 | Z26: 5 | AA26: -0.03746275365 | AB26: 150000 | AC26: 660990.9988 | AD26: 780609.0428 | AE26: 0 | AF26: 0.075 | AG26: =IF(Z26=0,0,IF(AF25=start-1+time1,0,IF(AG25<>0,AG25*(1+inca),IF(Y26=start,12*cont1*bondper,0)))) -> 150000 | AH26: 660990.9988 | AI26: 871815.3237 | AJ26: 0 | AK26: 0.5 | AL26: 0.5 | AM26: 0.4724022827 | AN26: 0.5275977173
A27: 1981 | B27: 0.1264915683 | H27: 2002 | I27: 6 | J27: -0.1212417312 | K27: 150000 | L27: 676106.7285 | M27: 725948.1186 | N27: 0 | O27: 0.0425 | P27: 150000 | Q27: 968626.1617 | R27: 1166167.774 | S27: 0 | T27: 0.4247918738 | U27: 0.5752081262 | V27: 0.3836700075 | W27: 0.6163299925 | Y27: 2002 | Z27: 6 | AA27: -0.1212417312 | AB27: 150000 | AC27: 826212.1832 | AD27: 857854.5281 | AE27: 0 | AF27: 0.0425 | AG27: =IF(Z27=0,0,IF(AF26=start-1+time1,0,IF(AG26<>0,AG26*(1+inca),IF(Y27=start,12*cont1*bondper,0)))) -> 150000 | AH27: 826212.1832 | AI27: 1017701.201 | AJ27: 0 | AK27: 0.5 | AL27: 0.5 | AM27: 0.4573868506 | AN27: 0.5426131494
A28: 1982 | B28: 0.1689828025 | H28: 2003 | I28: 7 | J28: 0.8337531817 | K28: 150000 | L28: 725948.1186 | M28: 1606272.649 | N28: 0 | O28: 0.04 | P28: 150000 | Q28: 1166167.774 | R28: 1368814.485 | S28: 0 | T28: 0.3995902414 | U28: 0.6004097586 | V28: 0.5399077664 | W28: 0.4600922336 | Y28: 2003 | Z28: 7 | AA28: 0.8337531817 | AB28: 150000 | AC28: 937777.8646 | AD28: 1994716.12 | AE28: 0 | AF28: 0.04 | AG28: =IF(Z28=0,0,IF(AF27=start-1+time1,0,IF(AG27<>0,AG27*(1+inca),IF(Y28=start,12*cont1*bondper,0)))) -> 150000 | AH28: 937777.8646 | AI28: 1131288.979 | AJ28: 0 | AK28: 0.5 | AL28: 0.5 | AM28: 0.6381039239 | AN28: 0.3618960761
A29: 1983 | B29: 0.1581462313 | H29: 2004 | I29: 8 | J29: 0.1613816048 | K29: 150000 | L29: 1606272.649 | M29: 2039702.748 | N29: 0 | O29: 0.0525 | P29: 150000 | Q29: 1368814.485 | R29: 1598552.245 | S29: 0 | T29: 0.5362521904 | U29: 0.4637478096 | V29: 0.5606266609 | W29: 0.4393733391 | Y29: 2004 | Z29: 8 | AA29: 0.1613816048 | AB29: 150000 | AC29: 1563002.55 | AD29: 1989449.65 | AE29: 0 | AF29: 0.0525 | AG29: =IF(Z29=0,0,IF(AF28=start-1+time1,0,IF(AG28<>0,AG28*(1+inca),IF(Y29=start,12*cont1*bondper,0)))) -> 150000 | AH29: 1563002.55 | AI29: 1802935.183 | AJ29: 0 | AK29: 0.5 | AL29: 0.5 | AM29: 0.5245906567 | AN29: 0.4754093433
A30: 1984 | B30: 0.1983617359 | H30: 2005 | I30: 9 | J30: 0.7373036677 | K30: 150000 | L30: 2039702.748 | M30: 3804178.616 | N30: 0 | O30: 0.06 | P30: 150000 | Q30: 1598552.245 | R30: 1853465.38 | S30: 0 | T30: 0.5560083722 | U30: 0.4439916278 | V30: 0.6723962516 | W30: 0.3276037484 | Y30: 2005 | Z30: 9 | AA30: 0.7373036677 | AB30: 150000 | AC30: 1896192.417 | AD30: 3554857.591 | AE30: 0 | AF30: 0.06 | AG30: =IF(Z30=0,0,IF(AF29=start-1+time1,0,IF(AG29<>0,AG29*(1+inca),IF(Y30=start,12*cont1*bondper,0)))) -> 150000 | AH30: 1896192.417 | AI30: 2168963.962 | AJ30: 0 | AK30: 0.5 | AL30: 0.5 | AM30: 0.6210636649 | AN30: 0.3789363351
A31: 1985 | B31: 0.1677435029 | H31: 2006 | I31: 10 | J31: 0.1588741135 | K31: 150000 | L31: 3804178.616 | M31: 4582395.238 | N31: 0 | O31: 0.0625 | P31: 150000 | Q31: 1853465.38 | R31: 2128681.966 | S31: 0 | T31: 0.6637151563 | U31: 0.3362848437 | V31: 0.6828106873 | W31: 0.3171893127 | Y31: 2006 | Z31: 10 | AA31: 0.1588741135 | AB31: 150000 | AC31: 2861910.776 | AD31: 3490425.431 | AE31: 0 | AF31: 0.0625 | AG31: =IF(Z31=0,0,IF(AF30=start-1+time1,0,IF(AG30<>0,AG30*(1+inca),IF(Y31=start,12*cont1*bondper,0)))) -> 150000 | AH31: 2861910.776 | AI31: 3200155.2 | AJ31: 0 | AK31: 0.5 | AL31: 0.5 | AM31: 0.5216924544 | AN31: 0.4783075456
A32: 1986 | B32: 0.2335679104 | H32: 2007 | I32: 11 | J32: 0.1967778704 | K32: 150000 | L32: 4582395.238 | M32: 5663625.895 | N32: 0 | O32: 0.07 | P32: 150000 | Q32: 2128681.966 | R32: 2438189.704 | S32: 0 | T32: 0.6749883221 | U32: 0.3250116779 | V32: 0.6990563814 | W32: 0.3009436186 | Y32: 2007 | Z32: 11 | AA32: 0.1967778704 | AB32: 150000 | AC32: 3345290.315 | AD32: 4183086.1 | AE32: 0 | AF32: 0.07 | AG32: =IF(Z32=0,0,IF(AF31=start-1+time1,0,IF(AG31<>0,AG31*(1+inca),IF(Y32=start,12*cont1*bondper,0)))) -> 150000 | AH32: 3345290.315 | AI32: 3739960.637 | AJ32: 0 | AK32: 0.5 | AL32: 0.5 | AM32: 0.5279643348 | AN32: 0.4720356652
A33: 1987 | B33: 0.209125172 | H33: 2008 | I33: 12 | J33: -0.3794265041 | K33: 150000 | L33: 5663625.895 | M33: 3607782.146 | N33: 0 | O33: 0.08 | P33: 150000 | Q33: 2438189.704 | R33: 2795244.88 | S33: 0 | T33: 0.6919487612 | U33: 0.3080512388 | V33: 0.563449464 | W33: 0.436550536 | Y33: 2008 | Z33: 12 | AA33: -0.3794265041 | AB33: 150000 | AC33: 3961523.369 | AD33: 2551502.431 | AE33: 0 | AF33: 0.08 | AG33: =IF(Z33=0,0,IF(AF32=start-1+time1,0,IF(AG32<>0,AG32*(1+inca),IF(Y33=start,12*cont1*bondper,0)))) -> 150000 | AH33: 3961523.369 | AI33: 4440445.238 | AJ33: 0 | AK33: 0.5 | AL33: 0.5 | AM33: 0.3649201269 | AN33: 0.6350798731
A34: 1988 | B34: 0.1732216229 | H34: 2009 | I34: 13 | J34: 0.8053252305 | K34: 150000 | L34: 3607782.146 | M34: 6784018.918 | N34: 0 | O34: 0.09 | P34: 150000 | Q34: 2795244.88 | R34: 3210316.919 | S34: 0 | T34: 0.5606097262 | U34: 0.4393902738 | V34: 0.6787863675 | W34: 0.3212136325 | Y34: 2009 | Z34: 13 | AA34: 0.8053252305 | AB34: 150000 | AC34: 3495973.834 | AD34: 6582168.553 | AE34: 0 | AF34: 0.09 | AG34: =IF(Z34=0,0,IF(AF33=start-1+time1,0,IF(AG33<>0,AG33*(1+inca),IF(Y34=start,12*cont1*bondper,0)))) -> 150000 | AH34: 3495973.834 | AI34: 3974111.479 | AJ34: 0 | AK34: 0.5 | AL34: 0.5 | AM34: 0.6235310671 | AN34: 0.3764689329
A35: 1989 | B35: 0.1864551126 | H35: 2010 | I35: 14 | J35: 0.1094311633 | K35: 150000 | L35: 6784018.918 | M35: 7692816.675 | N35: 0 | O35: 0.1 | P35: 150000 | Q35: 3210316.919 | R35: 3696348.611 | S35: 0 | T35: 0.6735761323 | U35: 0.3264238677 | V35: 0.6754504375 | W35: 0.3245495625 | Y35: 2010 | Z35: 14 | AA35: 0.1094311633 | AB35: 150000 | AC35: 5278140.016 | AD35: 6022147.693 | AE35: 0 | AF35: 0.1 | AG35: =IF(Z35=0,0,IF(AF34=start-1+time1,0,IF(AG34<>0,AG34*(1+inca),IF(Y35=start,12*cont1*bondper,0)))) -> 150000 | AH35: 5278140.016 | AI35: 5970954.018 | AJ35: 0 | AK35: 0.5 | AL35: 0.5 | AM35: 0.5021342967 | AN35: 0.4978657033
A36: 1990 | B36: 0.1491836802 | H36: 2011 | I36: 15 | J36: -0.1049524299 | K36: 150000 | L36: 7692816.675 | M36: 7019694.007 | N36: 7019694.007 | O36: 0.11 | P36: 150000 | Q36: 3696348.611 | R36: 4269446.958 | S36: 4269446.958 | T36: 0.6709475384 | U36: 0.3290524616 | V36: 0.6218094033 | W36: 0.3781905967 | Y36: 2011 | Z36: 15 | AA36: -0.1049524299 | AB36: 150000 | AC36: 5996550.855 | AD36: 5501455.407 | AE36: 5501455.407 | AF36: 0.11 | AG36: =IF(Z36=0,0,IF(AF35=start-1+time1,0,IF(AG35<>0,AG35*(1+inca),IF(Y36=start,12*cont1*bondper,0)))) -> 150000 | AH36: 5996550.855 | AI36: 6822671.449 | AJ36: 6822671.449 | AK36: 0.5 | AL36: 0.5 | AM36: 0.4463971745 | AN36: 0.5536028255
A37: 1991 | B37: 0.09785367659 | H37: Note 35% returns listed against 1980 actually is the return
A38: 1992 | B38: 0.04874316574 | H38: generated in the financial year 1980-1981
A39: 1993 | B39: 0.0148188527
A40: 1994 | B40: 0.1112518749
A41: 1995 | B41: 0.07458341771
A42: 1996 | B42: 0.06210776047
A43: 1997 | B43: 0.09167977391

Sheet Annual Rebalancing Retirement
A1: Enter data only in green cells | H1: No Rebalancing | W1: Annual Rebalancing
A2: Enter no of years (max 32) | D2: 15 | H2: Year of | I2: Year | J2: Sensex | K2: Annual | L2: invest. From | M2: Total Equity | O2: FD | P2: Annual | Q2: invest. From | R2: Total Debt | T2: Asset Allocation | W2: Year of | X2: Year | Y2: Sensex | Z2: Annual | AA2: invest. From | AB2: Total Equity | AD2: FD | AE2: Annual | AF2: invest. From | AG2: Total Debt | AI2: Asset Allocation
A3: Choose a starting year between | D3: 1980 | E3: and | F3: =2011-time1+1 -> 1997 | H3: return | J3: return | L3: previous | O3: return | Q3: previous | T3: After investment | Y3: return | Z3: Investment | AA3: Previous | AB3: Corpus | AD3: return | AE3: investment | AF3: Previous | AG3: Corpus | AI3: Equity | AJ3: Debt
A4: Starting year | C4: 1997 | L4: year | Q4: year | T4: Equity | U4: Debt | AA4: year | AF4: year | AI4: After investment
A5: monthly contribution in 1st year | D5: 10000 | H5: 1980 | I5: =IF(O4=start-1+time1,0,IF(I4<>0,I4+1,IF(H5=start,1,0))) -> 0 | J5: 0.3489927666 | K5: =IF(O4=start-1+time1,0,IF(K4<>0,K4*(1+inca),IF(H5=start,cont1*eqper,0))) -> 0 | L5: =IF(I5=0,0,K5*12) -> 0 | M5: =IF(I5=0,0,(L5+M4)*(1+J5)) -> 0 | N5: =IF(I5=time1,M5,0) -> 0 | O5: 0.075 | P5: =IF(O4=start-1+time1,0,IF(K4<>0,K4*(1+inca),IF(H5=start,cont1*bondper,0))) -> 0 | Q5: =IF(I5=0,0,P5*12) -> 0 | R5: =IF(I5=0,0,(Q5+R4)*(1+O5)) -> 0 | S5: =IF(I5=time1,R5,0) -> 0 | T5: =IF(I5=0,0,M5/(M5+R5)) -> 0 | U5: =IF(I5=0,0,R5/(M5+R5)) -> 0 | W5: 1980 | X5: =IF(AD4=start-1+time1,0,IF(X4<>0,X4+1,IF(W5=start,1,0))) -> 0 | Y5: 0.3489927666 | Z5: =IF(AD4=start-1+time1,0,IF(Z4<>0,Z4*(1+inca),IF(W5=start,cont1*eqper,0))) -> 0 | AA5: =IF(X5=0,0,Z5*12) -> 0 | AB5: =IF(X5=0,0,(AA5+AB4)*(1+Y5)) -> 0 | AC5: =IF(X5=time1,AB5,0) -> 0 | AD5: 0.075 | AE5: =IF(AD4=start-1+time1,0,IF(Z4<>0,Z4*(1+inca),IF(W5=start,cont1*bondper,0))) -> 0 | AF5: =IF(X5=0,0,AE5*12) -> 0 | AG5: =IF(X5=0,0,(AF5+AG4)*(1+AD5)) -> 0 | AH5: =IF(X5=time1,AG5,0) -> 0 | AI5: =IF(X5=0,0,AB5/(AB5+AG5)) -> 0 | AJ5: =IF(X5=0,0,AG5/(AB5+AG5)) -> 0
A6: % increase or | B6: decrease each year | D6: 0 | H6: =H5+1 -> 1981 | I6: =IF(H5=start-1+time1,0,IF(I5<>0,I5+1,IF(H6=start,1,0))) -> 0 | J6: 0.2552467712 | K6: =IF(O5=start-1+time1,0,IF(K5<>0,K5*(1+inca),IF(H6=start,cont1*eqper,0))) -> 0 | L6: =IF(I6=0,0,K6*12) -> 0 | M6: =IF(I6=0,0,(L6+M5)*(1+J6)) -> 0 | N6: 0 | O6: 0.08 | P6: =IF(O5=start-1+time1,0,IF(K5<>0,K5*(1+inca),IF(H6=start,cont1*bondper,0))) -> 0 | Q6: 0 | R6: =IF(I6=0,0,(Q6+R5)*(1+O6)) -> 0 | S6: 0 | T6: =IF(I6=0,0,M6/(M6+R6)) -> 0 | U6: =IF(I6=0,0,R6/(M6+R6)) -> 0 | W6: =W5+1 -> 1981 | X6: =IF(W5=start-1+time1,0,IF(X5<>0,X5+1,IF(W6=start,1,0))) -> 0 | Y6: 0.2552467712 | Z6: 0 | AA6: =IF(X6=0,0,Z6*12) -> 0 | AB6: =IF(X6=0,0,(AA6+eqper*(AB5+AG5))*(1+Y6)) -> 0 | AC6: 0 | AD6: 0.08 | AE6: 0 | AF6: 0 | AG6: =IF(X6=0,0,(AF6+bondper*(AG5+AB5))*(1+AD6)) -> 0 | AH6: 0 | AI6: =IF(X6=0,0,AB6/(AB6+AG6)) -> 0 | AJ6: =IF(X6=0,0,AG6/(AB6+AG6)) -> 0
A7: % in equities | B7: 0.5 | C7: % in FDs (debt) | D7: =100%-eqper -> 0.5 | H7: =H6+1 -> 1982 | I7: 0 | J7: -0.02847825088 | K7: 0 | L7: 0 | M7: 0 | N7: 0 | O7: 0.08 | P7: 0 | Q7: 0 | R7: 0 | S7: 0 | T7: 0 | U7: 0 | W7: =W6+1 -> 1982 | X7: 0 | Y7: -0.02847825088 | Z7: 0 | AA7: 0 | AB7: 0 | AC7: 0 | AD7: 0.08 | AE7: 0 | AF7: 0 | AG7: 0 | AH7: 0 | AI7: 0 | AJ7: 0
A8: Total must be 100% | H8: 1983 | I8: 0 | J8: 0.1598978772 | K8: 0 | L8: 0 | M8: 0 | N8: 0 | O8: 0.08 | P8: 0 | Q8: 0 | R8: 0 | S8: 0 | T8: 0 | U8: 0 | W8: 1983 | X8: 0 | Y8: 0.1598978772 | Z8: 0 | AA8: 0 | AB8: 0 | AC8: 0 | AD8: 0.08 | AE8: 0 | AF8: 0 | AG8: 0 | AH8: 0 | AI8: 0 | AJ8: 0
A9: Enter a rate of inflation during retirement | D9: 0.08 | H9: 1984 | I9: 0 | J9: 0.442383728 | K9: 0 | L9: 0 | M9: 0 | N9: =IF(I9=time1,M9,0) -> 0 | O9: 0.08 | P9: 0 | Q9: 0 | R9: 0 | S9: 0 | T9: 0 | U9: 0 | W9: 1984 | X9: 0 | Y9: 0.442383728 | Z9: 0 | AA9: 0 | AB9: 0 | AC9: =IF(X9=time1,AB9,0) -> 0 | AD9: 0.08 | AE9: 0 | AF9: 0 | AG9: 0 | AH9: 0 | AI9: 0 | AJ9: 0
A10: rate of interest you expect corpus to earn during retirement | D10: 0.08 | H10: 1985 | I10: 0 | J10: 0.6224212966 | K10: 0 | L10: 0 | M10: 0 | N10: =IF(I10=time1,M10,0) -> 0 | O10: 0.085 | P10: 0 | Q10: 0 | R10: 0 | S10: 0 | T10: 0 | U10: 0 | W10: 1985 | X10: 0 | Y10: 0.6224212966 | Z10: 0 | AA10: 0 | AB10: 0 | AC10: =IF(X10=time1,AB10,0) -> 0 | AD10: 0.085 | AE10: 0 | AF10: 0 | AG10: 0 | AH10: 0 | AI10: 0 | AJ10: 0
A11: Enter the pension amt which will cover monthly expenses | D11: 40000 | E11: (enter present expenses to try) | H11: 1986 | I11: 0 | J11: -0.1110414381 | K11: 0 | L11: 0 | M11: 0 | N11: 0 | O11: 0.085 | P11: 0 | Q11: 0 | R11: 0 | S11: 0 | T11: 0 | U11: 0 | W11: 1986 | X11: 0 | Y11: -0.1110414381 | Z11: 0 | AA11: 0 | AB11: 0 | AC11: =IF(X11=time1,AB11,0) -> 0 | AD11: 0.085 | AE11: 0 | AF11: 0 | AG11: 0 | AH11: 0 | AI11: 0 | AJ11: 0
H12: 1987 | I12: 0 | J12: -0.2194333412 | K12: 0 | L12: 0 | M12: 0 | N12: 0 | O12: 0.09 | P12: 0 | Q12: 0 | R12: 0 | S12: 0 | T12: 0 | U12: 0 | W12: 1987 | X12: 0 | Y12: -0.2194333412 | Z12: 0 | AA12: 0 | AB12: 0 | AC12: 0 | AD12: 0.09 | AE12: 0 | AF12: 0 | AG12: 0 | AH12: 0 | AI12: 0 | AJ12: 0
B13: Equity corpus | C13: Debt Corpus | D13: Total corpus | E13: % Equity | F13: %Debt | H13: 1988 | I13: 0 | J13: 0.7912995456 | K13: 0 | L13: 0 | M13: 0 | N13: 0 | O13: 0.09 | P13: 0 | Q13: 0 | R13: 0 | S13: 0 | T13: 0 | U13: 0 | W13: 1988 | X13: 0 | Y13: 0.7912995456 | Z13: 0 | AA13: 0 | AB13: 0 | AC13: 0 | AD13: 0.09 | AE13: 0 | AF13: 0 | AG13: 0 | AH13: 0 | AI13: 0 | AJ13: 0
A14: no rebalancing | B14: =MAX(N4:N57) -> 2807877.603 | C14: =MAX(S4:S57) -> 1707778.783 | D14: =B14+C14 -> 4515656.386 | E14: =B14/D14 -> 0.6218094033 | F14: =C14/D14 -> 0.3781905967 | H14: 1989 | I14: 0 | J14: 0.09452073991 | K14: 0 | L14: 0 | M14: 0 | N14: 0 | O14: 0.09 | P14: 0 | Q14: 0 | R14: 0 | S14: 0 | T14: 0 | U14: 0 | W14: 1989 | X14: 0 | Y14: 0.09452073991 | Z14: 0 | AA14: 0 | AB14: 0 | AC14: 0 | AD14: 0.09 | AE14: 0 | AF14: 0 | AG14: 0 | AH14: 0 | AI14: 0 | AJ14: 0
A15: annual rebalancing | B15: =MAX(AC4:AC60) -> 2200582.163 | C15: =MAX(AH4:AH60) -> 2729068.58 | D15: =B15+C15 -> 4929650.743 | E15: =B15/D15 -> 0.4463971745 | F15: =C15/D15 -> 0.5536028255 | H15: 1990 | I15: 0 | J15: 0.4953844184 | K15: 0 | L15: 0 | M15: 0 | N15: 0 | O15: 0.09 | P15: 0 | Q15: 0 | R15: 0 | S15: 0 | T15: 0 | U15: 0 | W15: 1990 | X15: 0 | Y15: 0.4953844184 | Z15: 0 | AA15: 0 | AB15: 0 | AC15: 0 | AD15: 0.09 | AE15: 0 | AF15: 0 | AG15: 0 | AH15: 0 | AI15: 0 | AJ15: 0
A16: The % equity and debt shown here represents the final asset allocation | H16: 1991 | I16: 0 | J16: 2.668758615 | K16: 0 | L16: 0 | M16: 0 | N16: 0 | O16: 0.12 | P16: 0 | Q16: 0 | R16: 0 | S16: 0 | T16: 0 | U16: 0 | W16: 1991 | X16: 0 | Y16: 2.668758615 | Z16: 0 | AA16: 0 | AB16: 0 | AC16: 0 | AD16: 0.12 | AE16: 0 | AF16: 0 | AG16: 0 | AH16: 0 | AI16: 0 | AJ16: 0
A17: % difference bet the two corpuses | C17: =(D15-D14)/D14 -> 0.09167977391 | H17: 1992 | I17: 0 | J17: -0.467789965 | K17: 0 | L17: 0 | M17: 0 | N17: 0 | O17: 0.11 | P17: 0 | Q17: 0 | R17: 0 | S17: 0 | T17: 0 | U17: 0 | W17: 1992 | X17: 0 | Y17: -0.467789965 | Z17: 0 | AA17: 0 | AB17: 0 | AC17: 0 | AD17: 0.11 | AE17: 0 | AF17: 0 | AG17: 0 | AH17: 0 | AI17: 0 | AJ17: 0
A18: +ve means rebalanced portfolio is higher | H18: 1993 | I18: 0 | J18: 0.6570738253 | K18: 0 | L18: 0 | M18: 0 | N18: 0 | O18: 0.1 | P18: 0 | Q18: 0 | R18: 0 | S18: 0 | T18: 0 | U18: 0 | W18: 1993 | X18: 0 | Y18: 0.6570738253 | Z18: 0 | AA18: 0 | AB18: 0 | AC18: 0 | AD18: 0.1 | AE18: 0 | AF18: 0 | AG18: 0 | AH18: 0 | AI18: 0 | AJ18: 0
H19: 1994 | I19: 0 | J19: -0.1370816012 | K19: 0 | L19: 0 | M19: 0 | N19: 0 | O19: 0.11 | P19: 0 | Q19: 0 | R19: 0 | S19: 0 | T19: 0 | U19: 0 | W19: 1994 | X19: 0 | Y19: -0.1370816012 | Z19: 0 | AA19: 0 | AB19: 0 | AC19: 0 | AD19: 0.11 | AE19: 0 | AF19: 0 | AG19: 0 | AH19: 0 | AI19: 0 | AJ19: 0
A20: no rebalancing | B20: =NPER((1+rate)/(1+inf)-1,-exp*12,corp1,,1) -> 9.407617471 | D20: No of years corpus will last | H20: 1995 | I20: 0 | J20: 0.03239843482 | K20: 0 | L20: 0 | M20: 0 | N20: 0 | O20: 0.12 | P20: 0 | Q20: 0 | R20: 0 | S20: 0 | T20: 0 | U20: 0 | W20: 1995 | X20: 0 | Y20: 0.03239843482 | Z20: 0 | AA20: 0 | AB20: 0 | AC20: 0 | AD20: 0.12 | AE20: 0 | AF20: 0 | AG20: 0 | AH20: 0 | AI20: 0 | AJ20: 0
A21: annual rebalancing | B21: =NPER((1+rate)/(1+inf)-1,-exp*12,corp2,,1) -> 10.27010571 | C21: Examples are availabe in the 'Sample Data and analysis sheet' | H21: 1996 | I21: 0 | J21: -0.001699038499 | K21: 0 | L21: 0 | M21: 0 | N21: 0 | O21: 0.12 | P21: 0 | Q21: 0 | R21: 0 | S21: 0 | T21: 0 | U21: 0 | W21: 1996 | X21: 0 | Y21: -0.001699038499 | Z21: 0 | AA21: 0 | AB21: 0 | AC21: 0 | AD21: 0.12 | AE21: 0 | AF21: 0 | AG21: 0 | AH21: 0 | AI21: 0 | AJ21: 0
A22: Here we assume we are saving for retirment and detemine the no of years | H22: 1997 | I22: 1 | J22: 0.1582497493 | K22: 5000 | L22: 60000 | M22: 69494.98496 | N22: 0 | O22: 0.11 | P22: 5000 | Q22: 60000 | R22: 66600 | S22: 0 | T22: 0.5106358987 | U22: 0.4893641013 | W22: 1997 | X22: 1 | Y22: 0.1582497493 | Z22: 5000 | AA22: 60000 | AB22: 69494.98496 | AC22: 0 | AD22: 0.11 | AE22: 5000 | AF22: 60000 | AG22: 66600 | AH22: 0 | AI22: 0.5106358987 | AJ22: 0.4893641013
A23: the corpus will last from both approaches | H23: 1998 | I23: 2 | J23: -0.03924988761 | K23: 5000 | L23: 60000 | M23: 124412.3214 | N23: 0 | O23: 0.105 | P23: 5000 | Q23: 60000 | R23: 139893 | S23: 0 | T23: 0.4707144023 | U23: 0.5292855977 | W23: 1998 | X23: 2 | Y23: -0.03924988761 | Z23: 5000 | AA23: 60000 | AB23: 123021.6428 | AC23: 0 | AD23: 0.105 | AE23: 5000 | AF23: 60000 | AG23: 141492.4792 | AH23: 0 | AI23: 0.4650853492 | AJ23: 0.5349146508
H24: 1999 | I24: 3 | J24: 0.3372549439 | K24: 5000 | L24: 60000 | M24: 246606.2884 | N24: 0 | O24: 0.085 | P24: 5000 | Q24: 60000 | R24: 216883.905 | S24: 0 | T24: 0.5320636595 | U24: 0.4679363405 | W24: 1999 | X24: 3 | Y24: 0.3372549439 | Z24: 5000 | AA24: 60000 | AB24: 257096.7053 | AC24: 0 | AD24: 0.085 | AE24: 5000 | AF24: 60000 | AG24: 208598.9112 | AH24: 0 | AI24: 0.5520702712 | AJ24: 0.4479297288
A25: Click on the macro to find out the % difference | H25: 2000 | I25: 4 | J25: -0.279308497 | K25: 5000 | L25: 60000 | M25: 220968.5468 | N25: 0 | O25: 0.085 | P25: 5000 | Q25: 60000 | R25: 300419.0369 | S25: 0 | T25: 0.4238086094 | U25: 0.5761913906 | W25: 2000 | X25: 4 | Y25: -0.279308497 | Z25: 5000 | AA25: 60000 | AB25: 211052.9271 | AC25: 0 | AD25: 0.085 | AE25: 5000 | AF25: 60000 | AG25: 317739.8719 | AH25: 0 | AI25: 0.3991221655 | AJ25: 0.6008778345
A26: between the two corpuses for all possible | H26: 2001 | I26: 5 | J26: -0.03746275365 | K26: 5000 | L26: 60000 | M26: 270442.6914 | N26: 0 | O26: 0.075 | P26: 5000 | Q26: 60000 | R26: 387450.4647 | S26: 0 | T26: 0.4110738786 | U26: 0.5889261214 | W26: 2001 | X26: 5 | Y26: -0.03746275365 | Z26: 5000 | AA26: 60000 | AB26: 312243.6171 | AC26: 0 | AD26: 0.075 | AE26: 5000 | AF26: 60000 | AG26: 348726.1295 | AH26: 0 | AI26: 0.4724022827 | AJ26: 0.5275977173
A27: investment durations between | H27: 2002 | I27: 6 | J27: -0.1212417312 | K27: 5000 | L27: 60000 | M27: 290379.2474 | N27: 0 | O27: 0.0425 | P27: 5000 | Q27: 60000 | R27: 466467.1094 | S27: 0 | T27: 0.3836700075 | U27: 0.6163299925 | W27: 2002 | X27: 6 | Y27: -0.1212417312 | Z27: 5000 | AA27: 60000 | AB27: 343141.8113 | AC27: 0 | AD27: 0.0425 | AE27: 5000 | AF27: 60000 | AG27: 407080.4804 | AH27: 0 | AI27: 0.4573868506 | AJ27: 0.5426131494
A28: =D3 -> 1980 | B28: and | C28: =F3 -> 1997 | H28: 2003 | I28: 7 | J28: 0.8337531817 | K28: 5000 | L28: 60000 | M28: 642509.0598 | N28: 0 | O28: 0.04 | P28: 5000 | Q28: 60000 | R28: 547525.7938 | S28: 0 | T28: 0.5399077664 | U28: 0.4600922336 | W28: 2003 | X28: 7 | Y28: 0.8337531817 | Z28: 5000 | AA28: 60000 | AB28: 797886.448 | AC28: 0 | AD28: 0.04 | AE28: 5000 | AF28: 60000 | AG28: 452515.5917 | AH28: 0 | AI28: 0.6381039239 | AJ28: 0.3618960761
H29: 2004 | I29: 8 | J29: 0.1613816048 | K29: 5000 | L29: 60000 | M29: 815881.0993 | N29: 0 | O29: 0.0525 | P29: 5000 | Q29: 60000 | R29: 639420.898 | S29: 0 | T29: 0.5606266609 | U29: 0.4393733391 | W29: 2004 | X29: 8 | Y29: 0.1613816048 | Z29: 5000 | AA29: 60000 | AB29: 795779.8601 | AC29: 0 | AD29: 0.0525 | AE29: 5000 | AF29: 60000 | AG29: 721174.0734 | AH29: 0 | AI29: 0.5245906567 | AJ29: 0.4754093433
A30: Average % difference bet. Corpuses | C30: =AVERAGE(B33:B64) -> 0.1305410898 | H30: 2005 | I30: 9 | J30: 0.7373036677 | K30: 5000 | L30: 60000 | M30: 1521671.446 | N30: 0 | O30: 0.06 | P30: 5000 | Q30: 60000 | R30: 741386.1519 | S30: 0 | T30: 0.6723962516 | U30: 0.3276037484 | W30: 2005 | X30: 9 | Y30: 0.7373036677 | Z30: 5000 | AA30: 60000 | AB30: 1421943.036 | AC30: 0 | AD30: 0.06 | AE30: 5000 | AF30: 60000 | AG30: 867585.5847 | AH30: 0 | AI30: 0.6210636649 | AJ30: 0.3789363351
A31: Average no of additional years the rebalanced corpus will last | D31: =AVERAGE(C33:C64) -> 1.517237697 | H31: 2006 | I31: 10 | J31: 0.1588741135 | K31: 5000 | L31: 60000 | M31: 1832958.095 | N31: 0 | O31: 0.0625 | P31: 5000 | Q31: 60000 | R31: 851472.7864 | S31: 0 | T31: 0.6828106873 | U31: 0.3171893127 | W31: 2006 | X31: 10 | Y31: 0.1588741135 | Z31: 5000 | AA31: 60000 | AB31: 1396170.172 | AC31: 0 | AD31: 0.0625 | AE31: 5000 | AF31: 60000 | AG31: 1280062.08 | AH31: 0 | AI31: 0.5216924544 | AJ31: 0.4783075456
A32: Year | B32: % difference | C32: Additional years | H32: 2007 | I32: 11 | J32: 0.1967778704 | K32: 5000 | L32: 60000 | M32: 2265450.358 | N32: 0 | O32: 0.07 | P32: 5000 | Q32: 60000 | R32: 975275.8814 | S32: 0 | T32: 0.6990563814 | U32: 0.3009436186 | W32: 2007 | X32: 11 | Y32: 0.1967778704 | Z32: 5000 | AA32: 60000 | AB32: 1673234.44 | AC32: 0 | AD32: 0.07 | AE32: 5000 | AF32: 60000 | AG32: 1495984.255 | AH32: 0 | AI32: 0.5279643348 | AJ32: 0.4720356652
A33: 1980 | B33: 0.07742175555 | C33: 1.601637606 | H33: 2008 | I33: 12 | J33: -0.3794265041 | K33: 5000 | L33: 60000 | M33: 1443112.858 | N33: 0 | O33: 0.08 | P33: 5000 | Q33: 60000 | R33: 1118097.952 | S33: 0 | T33: 0.563449464 | U33: 0.436550536 | W33: 2008 | X33: 12 | Y33: -0.3794265041 | Z33: 5000 | AA33: 60000 | AB33: 1020600.972 | AC33: 0 | AD33: 0.08 | AE33: 5000 | AF33: 60000 | AG33: 1776178.095 | AH33: 0 | AI33: 0.3649201269 | AJ33: 0.6350798731
A34: 1981 | B34: 0.1264915683 | C34: 2.30272713 | H34: 2009 | I34: 13 | J34: 0.8053252305 | K34: 5000 | L34: 60000 | M34: 2713607.567 | N34: 0 | O34: 0.09 | P34: 5000 | Q34: 60000 | R34: 1284126.768 | S34: 0 | T34: 0.6787863675 | U34: 0.3212136325 | W34: 2009 | X34: 13 | Y34: 0.8053252305 | Z34: 5000 | AA34: 60000 | AB34: 2632867.421 | AC34: 0 | AD34: 0.09 | AE34: 5000 | AF34: 60000 | AG34: 1589644.592 | AH34: 0 | AI34: 0.6235310671 | AJ34: 0.3764689329
A35: 1982 | B35: 0.1689828025 | C35: 2.704482469 | H35: 2010 | I35: 14 | J35: 0.1094311633 | K35: 5000 | L35: 60000 | M35: 3077126.67 | N35: 0 | O35: 0.1 | P35: 5000 | Q35: 60000 | R35: 1478539.444 | S35: 0 | T35: 0.6754504375 | U35: 0.3245495625 | W35: 2010 | X35: 14 | Y35: 0.1094311633 | Z35: 5000 | AA35: 60000 | AB35: 2408859.077 | AC35: 0 | AD35: 0.1 | AE35: 5000 | AF35: 60000 | AG35: 2388381.607 | AH35: 0 | AI35: 0.5021342967 | AJ35: 0.4978657033
A36: 1983 | B36: 0.1581462313 | C36: 2.501572464 | H36: 2011 | I36: 15 | J36: -0.1049524299 | K36: 5000 | L36: 60000 | M36: 2807877.603 | N36: 2807877.603 | O36: 0.11 | P36: 5000 | Q36: 60000 | R36: 1707778.783 | S36: 1707778.783 | T36: 0.6218094033 | U36: 0.3781905967 | W36: 2011 | X36: 15 | Y36: -0.1049524299 | Z36: 5000 | AA36: 60000 | AB36: 2200582.163 | AC36: 2200582.163 | AD36: 0.11 | AE36: 5000 | AF36: 60000 | AG36: 2729068.58 | AH36: 2729068.58 | AI36: 0.4463971745 | AJ36: 0.5536028255
A37: 1984 | B37: 0.1983617359 | C37: 2.644451873 | H37: Note 35% returns listed against 1980 actually is the return
A38: 1985 | B38: 0.1677435029 | C38: 2.325158057 | H38: generated in the financial year 1980-1981
A39: 1986 | B39: 0.2335679104 | C39: 2.340116508
A40: 1987 | B40: 0.209125172 | C40: 1.898876035
A41: 1988 | B41: 0.1732216229 | C41: 1.324372858
A42: 1989 | B42: 0.1864551126 | C42: 1.64326786
A43: 1990 | B43: 0.1491836802 | C43: 1.260086397
A44: 1991 | B44: 0.09785367659 | C44: 0.9964408875
A45: 1992 | B45: 0.04874316574 | C45: 0.4803346827
A46: 1993 | B46: 0.0148188527 | C46: 0.1588692177
A47: 1994 | B47: 0.1112518749 | C47: 0.8316137544
A48: 1995 | B48: 0.07458341771 | C48: 0.7754453091
A49: 1996 | B49: 0.06210776047 | C49: 0.6583371893
A50: 1997 | B50: 0.09167977391 | C50: 0.8624882428

Sheet Sample Data and analysis
A1: SIP amt | B1: 10000 | D1: Lumpsum investment of 100000 | G1: SIP amt | H1: 10000 | I1: inflation at 8%
A2: duration 10 years | D2: duration 10 years | G2: duration 20 years | I2: rate of inflation at 8%
A3: equity | B3: 0.5 | D3: equity | E3: 0.5 | G3: equity | H3: 0.5 | I3: pension is 40000
A4: debt | B4: 0.5 | D4: debt | E4: 0.5 | G4: debt | H4: 0.5
A5: start year | B5: % diff bet the corpuses | D5: start year | E5: % diff bet the corpuses | G5: start year | H5: % diff bet the corpuses | I5: no of years rebalanced corpus will last longer
A6: 1980 | B6: 0.015 | D6: 1980 | E6: -0.03 | G6: 1980 | H6: 0.11 | I6: 4
A7: =A6+1 -> 1981 | B7: -0.013 | D7: =D6+1 -> 1981 | E7: -0.04 | G7: =G6+1 -> 1981 | H7: 0.257 | I7: 6
A8: 1982 | B8: -0.157 | D8: 1982 | E8: -0.2 | G8: 1982 | H8: 0.277 | I8: 6
A9: 1983 | B9: 0.141 | D9: 1983 | E9: 0.07 | G9: 1983 | H9: 0.287 | I9: 5
A10: 1984 | B10: 0.06 | D10: 1984 | E10: -0.03 | G10: 1984 | H10: 0.25 | I10: 5
A11: 1985 | B11: 0.158 | D11: 1985 | E11: 0.16 | G11: 1985 | H11: 0.233 | I11: 5
A12: 1986 | B12: 0.17 | D12: 1986 | E12: 0.28 | G12: 1986 | H12: 0.14 | I12: 4
A13: 1987 | B13: 0.166 | D13: 1987 | E13: 0.25 | G13: 1987 | H13: 0.1 | I13: 3
A14: 1988 | B14: 0.135 | D14: 1988 | E14: 0.12 | G14: 1988 | H14: 0.06 | I14: 2
A15: 1989 | B15: 0.142 | D15: 1989 | E15: 0.26 | G15: 1989 | H15: 0.23 | I15: 4
A16: 1990 | B16: 0.106 | D16: 1990 | E16: 0.22 | G16: 1990 | H16: 0.16 | I16: 3
A17: 1991 | B17: 0.072 | D17: 1991 | E17: 0.34 | G17: 1991 | H17: 0.14 | I17: 3
A18: 1992 | B18: -0.004 | D18: 1992 | E18: -0.04 | G18: 1992 | H18: 0.14 | I18: 3
A19: 1993 | B19: -0.018 | D19: 1993 | E19: 0.02
A20: 1994 | B20: 0.058 | D20: 1994 | E20: 0.06 | G20: Average | H20: =AVERAGE(H6:H18) -> 0.1833846154 | I20: =AVERAGE(I6:I18) -> 4.076923077
A21: 1995 | B21: 0.052 | D21: 1995 | E21: 0.08 | G21: Std Dev | H21: =STDEV(H6:H18) -> 0.07513713958 | I21: =STDEV(I6:I18) -> 1.255755978
A22: 1996 | B22: 0.021 | D22: 1996 | E22: 0.08
A23: 1997 | B23: -0.003 | D23: 1997 | E23: 0.05 | G23: longer the duration higher is the benefit of rebalancing: 18% avg for 20 years compared to 5% for 10 years (more data though)
A24: 1998 | B24: -0.03 | D24: 1998 | E24: 0.04 | G24: Although large % difference variations does not lead to a big differnece
A25: 1999 | B25: 0.075 | D25: 1999 | E25: 0.14 | G25: in the no of extra years rebalancing adds to the folio
A26: 2000 | B26: 0.029 | D26: 2000 | E26: 0.13 | G26: an average of 4 extra years is still significant
A27: 2001 | B27: 0.014 | D27: 2001 | E27: 0.02 | G27: I would think a % difference of less 5% should not make much
A28: 2002 | B28: 0.047 | D28: 2002 | E28: 0.05 | G28: of a difference to your financial goals
A29: +ve % means rebalanced portfolio is higher | G29: However we are using historical data and you will know if
A30: Average | B30: =AVERAGE(B6:B28) -> 0.05373913043 | D30: Average | E30: =AVERAGE(E6:E28) -> 0.08826086957 | G30: rebalancing has a made a difference only if you do it
A31: Std Dev | B31: =STDEV(B6:B28) -> 0.07832346531 | D31: Std Dev | E31: =STDEV(E6:E28) -> 0.1249600727 | G31: It certainly can't hurt and is most likely to benefit you
A33: As expected benefits of rebalancing are higher for lumpsum investments. On an average the rebalanced portfolio
A34: is 9% higher than the folio with no rebalancing. For SIP invesments it is 5% higher.
A35: The standard deviation for lumpsum investment is 12% which means the spead in individuals nos is higher
A37: A 5% higher corpus due to rebalancing a portfolio with SIP instruments is good
A38: But is it significant? This is tougher to answer.
A39: If during the process of goal planning you had taken precautions to
A40: underestimate interest rates and overestimate inflation
A41: your extimated corpus is likely to be lower than the corpus obtained
A42: with no rebalancing. If so you don’t care about rebalancing
A43: There is no way to know unless you rebalance so might as well give it a shot. It can’t hurt!
